[Event "*** Titled Tuesday Blitz"]
[Site "Chess.com"]
[Date "2019.03.05"]
[Round "5"]
[White "Koksik_13"]
[Black "DrVitman"]
[Result "1-0"]
[WhiteElo "2644"]
[BlackElo "2645"]
[TimeControl "180+2"]
[EndTime "14:10:43 PST"]
[Termination "Koksik_13 won on time"]

1. e4 {[%clk 0:02:57.5]} 1... c5 {[%clk 0:02:57.2]} 2. Nf3 {[%clk 0:02:57.9]}
2... Nc6 {[%clk 0:02:58.1]} 3. c3 {[%clk 0:02:59.1]} 3... e6 {[%clk 0:02:57]} 4.
d4 {[%clk 0:02:59.8]} 4... d5 {[%clk 0:02:57.8]} 5. exd5 {[%clk 0:03:01]} 5...
exd5 {[%clk 0:02:58.5]} 6. Bb5 {[%clk 0:03:02.5]} 6... Bd6 {[%clk 0:02:53.6]} 7.
O-O {[%clk 0:03:04.1]} 7... Ne7 {[%clk 0:02:53.3]} 8. dxc5 {[%clk 0:03:05.6]}
8... Bxc5 {[%clk 0:02:53.7]} 9. Nbd2 {[%clk 0:03:07.3]} 9... O-O {[%clk
0:02:54.1]} 10. Nb3 {[%clk 0:03:08.9]} 10... Bd6 {[%clk 0:02:41.5]} 11. Re1
{[%clk 0:03:10.3]} 11... Bg4 {[%clk 0:02:41.3]} 12. Be2 {[%clk 0:03:10.5]} 12...
Qc7 {[%clk 0:02:34.8]} 13. h3 {[%clk 0:03:11.2]} 13... Bh5 {[%clk 0:02:32.8]}
14. Nfd4 {[%clk 0:03:12.5]} 14... Bxe2 {[%clk 0:02:32.3]} 15. Qxe2 {[%clk
0:03:13.6]} 15... a6 {[%clk 0:02:31]} 16. Be3 {[%clk 0:03:12.4]} 16... Ne5
{[%clk 0:02:26.5]} 17. Rad1 {[%clk 0:03:11.9]} 17... Nc4 {[%clk 0:02:26]} 18.
Bc1 {[%clk 0:03:10]} 18... Rfe8 {[%clk 0:02:25.9]} 19. Nd2 {[%clk 0:03:10.9]}
19... b5 {[%clk 0:02:06.3]} 20. Nxc4 {[%clk 0:03:11.1]} 20... dxc4 {[%clk
0:02:06.7]} 21. Qe4 {[%clk 0:03:03.9]} 21... h6 {[%clk 0:01:46]} 22. Re2 {[%clk
0:03:02.4]} 22... Bc5 {[%clk 0:01:40.7]} 23. Rde1 {[%clk 0:03:01.1]} 23... Red8
{[%clk 0:01:30.4]} 24. Bf4 {[%clk 0:02:52.2]} 24... Qd7 {[%clk 0:01:26]} 25. Be3
{[%clk 0:02:27.4]} 25... Qd5 {[%clk 0:00:58.5]} 26. Qg4 {[%clk 0:02:22.1]} 26...
Qd7 {[%clk 0:00:57.7]} 27. Qg3 {[%clk 0:02:21.7]} 27... Bxd4 {[%clk 0:00:52.5]}
28. Bxd4 {[%clk 0:02:23]} 28... Nf5 {[%clk 0:00:53.2]} 29. Qf4 {[%clk 0:02:24]}
29... Nxd4 {[%clk 0:00:54]} 30. cxd4 {[%clk 0:02:25.5]} 30... Re8 {[%clk
0:00:46.7]} 31. Rxe8+ {[%clk 0:02:20.5]} 31... Rxe8 {[%clk 0:00:48.6]} 32. Rxe8+
{[%clk 0:02:19.1]} 32... Qxe8 {[%clk 0:00:50.5]} 33. d5 {[%clk 0:02:20.3]} 33...
Qd7 {[%clk 0:00:36.9]} 34. d6 {[%clk 0:02:20.8]} 34... f6 {[%clk 0:00:23.4]} 35.
Qd4 {[%clk 0:02:19.8]} 35... Kf7 {[%clk 0:00:18.8]} 36. Qd5+ {[%clk 0:02:21.2]}
36... Kg6 {[%clk 0:00:19.1]} 37. g4 {[%clk 0:02:16.5]} 37... a5 {[%clk 0:00:17]}
38. Qh5+ {[%clk 0:02:17.2]} 38... Kh7 {[%clk 0:00:17.5]} 39. Qf5+ {[%clk
0:02:18.8]} 39... Qxf5 {[%clk 0:00:14.1]} 40. gxf5 {[%clk 0:02:20]} 1-0

[Event "*** Titled Tuesday Blitz"]
[Site "Chess.com"]
[Date "2019.03.05"]
[Round "5"]
[White "Blitzstream"]
[Black "GrigorGrigorov"]
[Result "0-1"]
[WhiteElo "2570"]
[BlackElo "2828"]
[TimeControl "180+2"]
[EndTime "14:10:48 PST"]
[Termination "GrigorGrigorov won by resignation"]

1. d4 {[%clk 0:03:01.9]} 1... Nf6 {[%clk 0:03:00.1]} 2. Bg5 {[%clk 0:03:02.3]}
2... e6 {[%clk 0:03:00.5]} 3. e4 {[%clk 0:03:02.6]} 3... h6 {[%clk 0:03:01]} 4.
Bxf6 {[%clk 0:03:03.6]} 4... Qxf6 {[%clk 0:03:02.4]} 5. c3 {[%clk 0:03:05.2]}
5... d5 {[%clk 0:03:02.5]} 6. Nd2 {[%clk 0:03:03.8]} 6... c5 {[%clk 0:02:54.2]}
7. Ngf3 {[%clk 0:03:02.9]} 7... Nc6 {[%clk 0:02:54.5]} 8. Bb5 {[%clk 0:02:58]}
8... cxd4 {[%clk 0:02:48]} 9. Nxd4 {[%clk 0:02:53.3]} 9... Bd7 {[%clk
0:02:48.7]} 10. O-O {[%clk 0:02:23]} 10... a6 {[%clk 0:02:38.2]} 11. Qa4 {[%clk
0:02:18]} 11... Rc8 {[%clk 0:01:51]} 12. Bxc6 {[%clk 0:02:17.9]} 12... bxc6
{[%clk 0:01:51.2]} 13. Qxa6 {[%clk 0:02:17.2]} 13... Be7 {[%clk 0:01:50.7]} 14.
N4f3 {[%clk 0:02:00.5]} 14... O-O {[%clk 0:01:43]} 15. e5 {[%clk 0:01:59.4]}
15... Qg6 {[%clk 0:01:42.6]} 16. b4 {[%clk 0:01:23.2]} 16... c5 {[%clk 0:01:34]}
17. b5 {[%clk 0:01:13]} 17... Qd3 {[%clk 0:01:30.2]} 18. a4 {[%clk 0:01:09]}
18... Qxc3 {[%clk 0:01:25.4]} 19. b6 {[%clk 0:00:46.1]} 19... c4 {[%clk
0:01:17.8]} 20. Qb7 {[%clk 0:00:37.7]} 20... Rfd8 {[%clk 0:01:08]} 21. a5 {[%clk
0:00:38.9]} 21... Bc5 {[%clk 0:01:08.2]} 22. Rfb1 {[%clk 0:00:28.7]} 22... Bc6
{[%clk 0:01:07.4]} 23. Qa7 {[%clk 0:00:23.2]} 23... Ra8 {[%clk 0:01:07.9]} 24.
Qc7 {[%clk 0:00:18.2]} 24... Rdc8 {[%clk 0:01:03.5]} 25. b7 {[%clk 0:00:08]}
25... Rxc7 {[%clk 0:01:03.8]} 26. bxa8=Q+ {[%clk 0:00:08.9]} 26... Bxa8 {[%clk
0:01:04.8]} 0-1

[Event "*** Titled Tuesday Blitz"]
[Site "Chess.com"]
[Date "2019.03.05"]
[Round "5"]
[White "1stSecond"]
[Black "SantoBlue"]
[Result "1-0"]
[WhiteElo "2754"]
[BlackElo "2712"]
[TimeControl "180+2"]
[EndTime "14:10:55 PST"]
[Termination "1stSecond won by resignation"]

1. c4 {[%clk 0:03:00.2]} 1... Nf6 {[%clk 0:03:00.3]} 2. Nf3 {[%clk 0:02:57.1]}
2... b6 {[%clk 0:03:01.3]} 3. g3 {[%clk 0:02:57.8]} 3... Bb7 {[%clk 0:03:02.4]}
4. Bg2 {[%clk 0:02:59.7]} 4... g6 {[%clk 0:03:02.4]} 5. d4 {[%clk 0:02:59.4]}
5... Bg7 {[%clk 0:03:03.4]} 6. O-O {[%clk 0:03:00.9]} 6... O-O {[%clk
0:03:04.8]} 7. Nc3 {[%clk 0:03:01.9]} 7... e6 {[%clk 0:03:06.3]} 8. Bf4 {[%clk
0:02:58.4]} 8... d6 {[%clk 0:03:06.8]} 9. Qc1 {[%clk 0:02:56.4]} 9... Re8 {[%clk
0:03:07.7]} 10. Bh6 {[%clk 0:02:56.5]} 10... Bh8 {[%clk 0:03:09]} 11. Rd1 {[%clk
0:02:56.8]} 11... Nbd7 {[%clk 0:03:09.9]} 12. Qf4 {[%clk 0:02:52.5]} 12... Qe7
{[%clk 0:03:10]} 13. Qh4 {[%clk 0:02:49.1]} 13... Rad8 {[%clk 0:02:55.5]} 14.
Nb5 {[%clk 0:02:36.9]} 14... Nf8 {[%clk 0:02:47.3]} 15. Bg5 {[%clk 0:02:25.9]}
15... Rd7 {[%clk 0:02:25.5]} 16. Ne5 {[%clk 0:02:11.4]} 16... dxe5 {[%clk
0:02:15.7]} 17. Bxb7 {[%clk 0:01:56.1]} 17... exd4 {[%clk 0:02:16.2]} 18. Bc6
{[%clk 0:01:56.9]} 18... a6 {[%clk 0:01:43.8]} 19. Bxd7 {[%clk 0:01:51.8]} 19...
N8xd7 {[%clk 0:01:44.2]} 20. Nxd4 {[%clk 0:01:52.7]} 20... Qc5 {[%clk
0:01:41.7]} 21. Nf3 {[%clk 0:01:50.4]} 21... b5 {[%clk 0:01:23.5]} 22. cxb5
{[%clk 0:01:47.2]} 22... Qxb5 {[%clk 0:01:24.1]} 23. Rd2 {[%clk 0:01:30.8]}
23... Nd5 {[%clk 0:01:15.4]} 24. Rad1 {[%clk 0:01:29.4]} 24... f6 {[%clk
0:00:51.1]} 25. Bh6 {[%clk 0:01:23.6]} 25... Qc6 {[%clk 0:00:44.8]} 26. Nd4
{[%clk 0:01:16]} 26... Qb6 {[%clk 0:00:36.7]} 27. Nxe6 {[%clk 0:01:11.1]} 27...
Qxe6 {[%clk 0:00:38.6]} 28. Rxd5 {[%clk 0:01:11.9]} 28... Nb6 {[%clk 0:00:37.3]}
29. Rd8 {[%clk 0:01:04]} 29... Qxe2 {[%clk 0:00:38.5]} 30. Rxe8+ {[%clk
0:01:04.2]} 30... Qxe8 {[%clk 0:00:40.4]} 31. Be3 {[%clk 0:01:01.5]} 31... f5
{[%clk 0:00:32.2]} 32. Rd8 {[%clk 0:01:00.8]} 1-0

[Event "*** Titled Tuesday Blitz"]
[Site "Chess.com"]
[Date "2019.03.05"]
[Round "5"]
[White "Gr3egor"]
[Black "Sashadav97"]
[Result "1-0"]
[WhiteElo "2518"]
[BlackElo "2630"]
[TimeControl "180+2"]
[EndTime "14:11:03 PST"]
[Termination "Gr3egor won by resignation"]

1. d4 {[%clk 0:03:01.9]} 1... Nf6 {[%clk 0:02:59]} 2. c4 {[%clk 0:03:02.9]} 2...
e6 {[%clk 0:03:00.4]} 3. Nf3 {[%clk 0:03:04.3]} 3... d5 {[%clk 0:03:01]} 4. Nc3
{[%clk 0:03:05.7]} 4... dxc4 {[%clk 0:03:02.4]} 5. e4 {[%clk 0:03:05.8]} 5...
Bb4 {[%clk 0:03:03.2]} 6. Bxc4 {[%clk 0:03:02.1]} 6... Nxe4 {[%clk 0:03:03.1]}
7. O-O {[%clk 0:03:03.3]} 7... Nf6 {[%clk 0:02:44.3]} 8. Qa4+ {[%clk 0:03:00.6]}
8... Nc6 {[%clk 0:02:44.1]} 9. Ne5 {[%clk 0:02:59.2]} 9... Rb8 {[%clk
0:02:36.9]} 10. d5 {[%clk 0:02:50.7]} 10... exd5 {[%clk 0:02:32.9]} 11. Nxd5
{[%clk 0:02:50.1]} 11... Nxd5 {[%clk 0:02:25]} 12. Nxc6 {[%clk 0:02:51.3]} 12...
bxc6 {[%clk 0:02:24.6]} 13. Qxc6+ {[%clk 0:02:52.2]} 13... Qd7 {[%clk
0:02:19.1]} 14. Qxd5 {[%clk 0:02:46.3]} 14... Qxd5 {[%clk 0:02:17]} 15. Bxd5
{[%clk 0:02:48.2]} 15... O-O {[%clk 0:02:18.4]} 16. Bf4 {[%clk 0:02:49.5]} 16...
Ba5 {[%clk 0:02:13.7]} 17. b3 {[%clk 0:02:41.8]} 17... Bg4 {[%clk 0:02:14.5]}
18. Rac1 {[%clk 0:02:41.9]} 18... Be2 {[%clk 0:02:12.2]} 19. Rfe1 {[%clk
0:01:43.6]} 19... Bb4 {[%clk 0:02:05.9]} 20. Rxe2 {[%clk 0:01:43.5]} 20... Rbd8
{[%clk 0:01:56.5]} 21. Bc4 {[%clk 0:01:39.5]} 21... c5 {[%clk 0:01:57.3]} 22. g3
{[%clk 0:01:39.3]} 22... h6 {[%clk 0:01:58.3]} 23. Re7 {[%clk 0:01:39.3]} 23...
a5 {[%clk 0:01:55.1]} 24. Kg2 {[%clk 0:01:34.5]} 24... g5 {[%clk 0:01:52.3]} 25.
Be3 {[%clk 0:01:32.4]} 25... Kg7 {[%clk 0:01:51.7]} 26. Rc7 {[%clk 0:01:32.3]}
26... Rc8 {[%clk 0:01:51.6]} 27. Rxc8 {[%clk 0:01:33.6]} 27... Rxc8 {[%clk
0:01:53.5]} 28. Rd1 {[%clk 0:01:35.2]} 28... Rc7 {[%clk 0:01:53.3]} 29. Rd6
{[%clk 0:01:32.7]} 29... f6 {[%clk 0:01:47.2]} 30. Bb5 {[%clk 0:01:30.7]} 30...
Rc8 {[%clk 0:01:39.5]} 31. Rd7+ {[%clk 0:01:31.6]} 31... Kf8 {[%clk 0:01:33.4]}
32. Rh7 {[%clk 0:01:30.5]} 32... Rd8 {[%clk 0:01:32]} 33. Rh8+ {[%clk 0:01:26]}
33... Ke7 {[%clk 0:01:33]} 34. Rxd8 {[%clk 0:01:27.9]} 34... Kxd8 {[%clk
0:01:34.9]} 35. Kf3 {[%clk 0:01:29.7]} 35... Kc7 {[%clk 0:01:34]} 36. Ke4 {[%clk
0:01:31]} 36... Kd6 {[%clk 0:01:33.3]} 37. Kf5 {[%clk 0:01:31.9]} 37... Ke7
{[%clk 0:01:34.4]} 38. Bc4 {[%clk 0:01:30.8]} 38... h5 {[%clk 0:01:34.3]} 39. h3
{[%clk 0:01:32.2]} 39... Ba3 {[%clk 0:01:31.8]} 40. Bd2 {[%clk 0:01:32.6]} 40...
Bb2 {[%clk 0:01:27.8]} 41. Bxa5 {[%clk 0:01:33.5]} 41... Bd4 {[%clk 0:01:29.3]}
42. Bb6 {[%clk 0:01:34.4]} 42... Bxf2 {[%clk 0:01:28.5]} 43. g4 {[%clk
0:01:35.9]} 43... hxg4 {[%clk 0:01:27.6]} 44. hxg4 {[%clk 0:01:37.8]} 44... Kd6
{[%clk 0:01:20.5]} 45. Kxf6 {[%clk 0:01:35.9]} 45... Kc6 {[%clk 0:01:21.4]} 46.
Ba5 {[%clk 0:01:37.1]} 46... Be3 {[%clk 0:01:21.3]} 47. a4 {[%clk 0:01:35.2]}
47... Bc1 {[%clk 0:01:20.9]} 48. Kf5 {[%clk 0:01:32.9]} 48... Kd7 {[%clk
0:01:20.5]} 49. Bb6 {[%clk 0:01:33.2]} 49... Kd6 {[%clk 0:01:18.5]} 50. Bd8
{[%clk 0:01:33.9]} 50... Kc6 {[%clk 0:01:19.8]} 51. Bxg5 {[%clk 0:01:34.9]} 1-0

[Event "*** Titled Tuesday Blitz"]
[Site "Chess.com"]
[Date "2019.03.05"]
[Round "5"]
[White "GadimbayliA"]
[Black "vpantev"]
[Result "1-0"]
[WhiteElo "2853"]
[BlackElo "2636"]
[TimeControl "180+2"]
[EndTime "14:11:17 PST"]
[Termination "GadimbayliA won by resignation"]

1. e4 {[%clk 0:03:01.9]} 1... c6 {[%clk 0:03:00.8]} 2. Nf3 {[%clk 0:03:02.6]}
2... d5 {[%clk 0:03:01.8]} 3. exd5 {[%clk 0:03:04.5]} 3... cxd5 {[%clk
0:03:02.5]} 4. Ne5 {[%clk 0:03:06]} 4... Nc6 {[%clk 0:03:02]} 5. d4 {[%clk
0:03:07.2]} 5... Nf6 {[%clk 0:03:01.8]} 6. c3 {[%clk 0:03:07.9]} 6... g6 {[%clk
0:03:02.6]} 7. Bb5 {[%clk 0:03:08.6]} 7... Bd7 {[%clk 0:03:03.2]} 8. Nxd7 {[%clk
0:03:09.6]} 8... Qxd7 {[%clk 0:03:03.9]} 9. Nd2 {[%clk 0:03:11.5]} 9... Bg7
{[%clk 0:03:04.7]} 10. O-O {[%clk 0:03:12.8]} 10... O-O {[%clk 0:03:05.5]} 11.
Re1 {[%clk 0:03:14]} 11... Qc7 {[%clk 0:03:05]} 12. Nf3 {[%clk 0:03:12.5]} 12...
e6 {[%clk 0:03:01.4]} 13. g3 {[%clk 0:03:12.2]} 13... Ne4 {[%clk 0:02:59.9]} 14.
Bd3 {[%clk 0:03:05]} 14... f5 {[%clk 0:03:00.7]} 15. Ng5 {[%clk 0:03:04.6]}
15... Qe7 {[%clk 0:02:57.9]} 16. Nh3 {[%clk 0:02:59.7]} 16... e5 {[%clk
0:02:53.6]} 17. f3 {[%clk 0:02:59.7]} 17... exd4 {[%clk 0:02:44]} 18. fxe4
{[%clk 0:02:55.3]} 18... fxe4 {[%clk 0:02:42.4]} 19. Qb3 {[%clk 0:02:45.8]}
19... Qd7 {[%clk 0:02:24.2]} 20. Bxe4 {[%clk 0:02:12.9]} 20... Qxh3 {[%clk
0:02:20.2]} 21. Bxd5+ {[%clk 0:02:13.3]} 21... Kh8 {[%clk 0:02:21]} 22. Bg2
{[%clk 0:02:08.8]} 22... Qf5 {[%clk 0:02:09.4]} 23. Bf4 {[%clk 0:02:05.4]} 23...
dxc3 {[%clk 0:02:01.9]} 24. bxc3 {[%clk 0:02:05.1]} 24... Qc5+ {[%clk
0:01:53.6]} 25. Kh1 {[%clk 0:02:06]} 25... Na5 {[%clk 0:01:52.1]} 26. Qa4 {[%clk
0:01:59.8]} 26... Rac8 {[%clk 0:01:40.2]} 27. Rac1 {[%clk 0:01:55]} 27... b6
{[%clk 0:01:40.3]} 28. c4 {[%clk 0:01:49.8]} 28... g5 {[%clk 0:01:26]} 29. Be3
{[%clk 0:01:36.4]} 29... Bd4 {[%clk 0:01:20.8]} 30. Bd2 {[%clk 0:01:37.7]} 30...
Rf2 {[%clk 0:01:13.9]} 31. Bb4 {[%clk 0:01:29.2]} 31... Qf5 {[%clk 0:01:13.2]}
32. Re8+ {[%clk 0:01:25.7]} 32... Rxe8 {[%clk 0:01:11]} 33. Qxe8+ {[%clk
0:01:27.6]} 33... Kg7 {[%clk 0:01:10.7]} 34. Qe7+ {[%clk 0:01:26.3]} 34... Kh6
{[%clk 0:00:56]} 35. Rd1 {[%clk 0:01:27.1]} 35... Rxg2 {[%clk 0:00:46.8]} 36.
Qf8+ {[%clk 0:01:10.8]} 36... Bg7 {[%clk 0:00:45.4]} 37. Qxf5 {[%clk 0:01:10.8]}
1-0

[Event "*** Titled Tuesday Blitz"]
[Site "Chess.com"]
[Date "2019.03.05"]
[Round "5"]
[White "Divertissement"]
[Black "Slovak_fighter2000"]
[Result "0-1"]
[WhiteElo "2711"]
[BlackElo "2478"]
[TimeControl "180+2"]
[EndTime "14:11:18 PST"]
[Termination "Slovak_fighter2000 won by resignation"]

1. b3 {[%clk 0:02:48]} 1... d5 {[%clk 0:03:00]} 2. Bb2 {[%clk 0:02:47.9]} 2...
Bg4 {[%clk 0:03:01.3]} 3. h3 {[%clk 0:02:47.7]} 3... Bh5 {[%clk 0:03:02.2]} 4.
g4 {[%clk 0:02:33.5]} 4... Bg6 {[%clk 0:03:02.4]} 5. Bg2 {[%clk 0:02:33.9]} 5...
c6 {[%clk 0:03:00]} 6. e3 {[%clk 0:02:20.1]} 6... Nd7 {[%clk 0:03:00.8]} 7. Ne2
{[%clk 0:02:17.7]} 7... e5 {[%clk 0:03:01.3]} 8. O-O {[%clk 0:01:44.8]} 8... Bd6
{[%clk 0:03:02.2]} 9. d3 {[%clk 0:01:45.1]} 9... f6 {[%clk 0:03:02.7]} 10. Nd2
{[%clk 0:01:45.4]} 10... Ne7 {[%clk 0:03:03.9]} 11. e4 {[%clk 0:01:44.8]} 11...
Bf7 {[%clk 0:03:01.2]} 12. Ng3 {[%clk 0:01:45.6]} 12... Qc7 {[%clk 0:03:00.9]}
13. c4 {[%clk 0:01:45.4]} 13... dxe4 {[%clk 0:03:00.1]} 14. dxe4 {[%clk
0:01:38.3]} 14... a5 {[%clk 0:02:54.9]} 15. Qe2 {[%clk 0:01:38.2]} 15... Nc5
{[%clk 0:02:53.1]} 16. Rfd1 {[%clk 0:01:36.3]} 16... Ne6 {[%clk 0:02:53.3]} 17.
Ndf1 {[%clk 0:01:37]} 17... Bc5 {[%clk 0:02:49.2]} 18. Ne3 {[%clk 0:01:36.8]}
18... Nf4 {[%clk 0:02:49.3]} 19. Qf1 {[%clk 0:01:36.3]} 19... O-O {[%clk
0:02:45.9]} 20. Kh2 {[%clk 0:01:29.4]} 20... Rad8 {[%clk 0:02:46.6]} 21. Nef5
{[%clk 0:01:25.2]} 21... Nxf5 {[%clk 0:02:42]} 22. gxf5 {[%clk 0:01:25.4]} 22...
Rxd1 {[%clk 0:02:39.7]} 23. Rxd1 {[%clk 0:01:24.5]} 23... Rd8 {[%clk 0:02:41.6]}
24. Bc1 {[%clk 0:01:18.5]} 24... Rxd1 {[%clk 0:02:40.9]} 25. Qxd1 {[%clk
0:01:19.9]} 25... Bxf2 {[%clk 0:02:41.8]} 26. Qg4 {[%clk 0:01:17.5]} 26... h5
{[%clk 0:02:30.6]} 27. Qf3 {[%clk 0:01:15.9]} 27... Bxg3+ {[%clk 0:02:26.3]} 28.
Qxg3 {[%clk 0:01:15.8]} 28... Ne2 {[%clk 0:02:24.7]} 29. Qe3 {[%clk 0:01:15.7]}
29... Nxc1 {[%clk 0:02:25.3]} 30. Qxc1 {[%clk 0:01:17.6]} 30... Qd6 {[%clk
0:02:23.4]} 31. Qe1 {[%clk 0:01:14.8]} 31... b6 {[%clk 0:02:22.4]} 32. Qe3
{[%clk 0:01:13.6]} 32... Qd4 {[%clk 0:02:20.9]} 33. Qc1 {[%clk 0:01:11.4]} 33...
Qf2 {[%clk 0:02:17.1]} 34. Qa3 {[%clk 0:01:11.3]} 34... h4 {[%clk 0:02:08.4]}
35. Qd6 {[%clk 0:01:06]} 35... Bh5 {[%clk 0:02:06.6]} 36. Qd3 {[%clk 0:01:04.2]}
36... Qf4+ {[%clk 0:02:05.3]} 37. Kg1 {[%clk 0:01:04.3]} 37... Kh7 {[%clk
0:02:05]} 38. a4 {[%clk 0:00:59.8]} 38... c5 {[%clk 0:02:04.2]} 39. Kh1 {[%clk
0:00:52.8]} 39... Qg3 {[%clk 0:01:59.7]} 40. Qf1 {[%clk 0:00:38.7]} 40... Qxb3
{[%clk 0:01:50.5]} 41. Qf2 {[%clk 0:00:39.7]} 41... Qg3 {[%clk 0:01:48]} 42. Qf1
{[%clk 0:00:39.8]} 42... Qe3 {[%clk 0:01:45.7]} 43. Kh2 {[%clk 0:00:38.6]} 43...
Be2 {[%clk 0:01:44.5]} 44. Qc1 {[%clk 0:00:38.7]} 44... Qxc1 {[%clk 0:01:45.3]}
0-1

[Event "*** Titled Tuesday Blitz"]
[Site "Chess.com"]
[Date "2019.03.05"]
[Round "5"]
[White "Walter_White_Poland"]
[Black "HrvojeZagreb"]
[Result "0-1"]
[WhiteElo "2195"]
[BlackElo "2122"]
[TimeControl "180+2"]
[EndTime "14:11:19 PST"]
[Termination "HrvojeZagreb won on time"]

1. e4 {[%clk 0:03:01.9]} 1... e6 {[%clk 0:03:00.9]} 2. d4 {[%clk 0:03:02.2]}
2... d5 {[%clk 0:03:02]} 3. exd5 {[%clk 0:03:02.5]} 3... exd5 {[%clk 0:03:02.8]}
4. Nf3 {[%clk 0:03:03.6]} 4... Bd6 {[%clk 0:03:03.7]} 5. c4 {[%clk 0:03:04.2]}
5... c6 {[%clk 0:03:03.7]} 6. Nc3 {[%clk 0:03:04.9]} 6... Ne7 {[%clk 0:03:04]}
7. Bd3 {[%clk 0:03:05.3]} 7... dxc4 {[%clk 0:03:04.5]} 8. Bxc4 {[%clk
0:03:05.8]} 8... O-O {[%clk 0:03:05.4]} 9. O-O {[%clk 0:03:05.9]} 9... Nd7
{[%clk 0:03:01.2]} 10. Bb3 {[%clk 0:02:54.9]} 10... Nb6 {[%clk 0:02:59.2]} 11.
Ne5 {[%clk 0:02:52.7]} 11... Nbd5 {[%clk 0:02:53.6]} 12. Be3 {[%clk 0:02:37.7]}
12... f6 {[%clk 0:02:50.3]} 13. Nd3 {[%clk 0:02:13.4]} 13... Kh8 {[%clk
0:02:46.2]} 14. Nxd5 {[%clk 0:02:06.4]} 14... Nxd5 {[%clk 0:02:46]} 15. Bxd5
{[%clk 0:02:05.8]} 15... cxd5 {[%clk 0:02:47.9]} 16. Bf4 {[%clk 0:02:06]} 16...
Bf5 {[%clk 0:02:41.8]} 17. Bxd6 {[%clk 0:02:03.9]} 17... Qxd6 {[%clk 0:02:43.7]}
18. Nc5 {[%clk 0:01:49.6]} 18... b6 {[%clk 0:02:39.3]} 19. Nb3 {[%clk
0:01:49.6]} 19... Rac8 {[%clk 0:02:29.8]} 20. Rc1 {[%clk 0:01:49.2]} 20... Rc4
{[%clk 0:02:28]} 21. Re1 {[%clk 0:01:41.4]} 21... Rfc8 {[%clk 0:02:20.1]} 22.
Qd2 {[%clk 0:01:29.4]} 22... h6 {[%clk 0:01:59.1]} 23. Rc3 {[%clk 0:01:22.8]}
23... Qb4 {[%clk 0:01:31.5]} 24. Rec1 {[%clk 0:01:04.3]} 24... a5 {[%clk
0:01:20.8]} 25. Qf4 {[%clk 0:00:48.4]} 25... Bg6 {[%clk 0:01:12.4]} 26. Qg4
{[%clk 0:00:38]} 26... Kh7 {[%clk 0:01:12.9]} 27. Qxc8 {[%clk 0:00:08.7]} 27...
Rxc8 {[%clk 0:01:14.8]} 28. Rxc8 {[%clk 0:00:09.3]} 28... a4 {[%clk 0:01:16.1]}
29. Na1 {[%clk 0:00:09.4]} 29... Qxb2 {[%clk 0:01:12.2]} 30. h3 {[%clk
0:00:06.7]} 30... Qxd4 {[%clk 0:01:09.8]} 31. Nc2 {[%clk 0:00:03.9]} 31... Qb2
{[%clk 0:01:10.2]} 32. Ne3 {[%clk 0:00:04.5]} 32... Qxa2 {[%clk 0:01:09.5]} 0-1

[Event "*** Titled Tuesday Blitz"]
[Site "Chess.com"]
[Date "2019.03.05"]
[Round "5"]
[White "Quiet_Desperation"]
[Black "TreinadorBR"]
[Result "1-0"]
[WhiteElo "2405"]
[BlackElo "2204"]
[TimeControl "180+2"]
[EndTime "14:11:21 PST"]
[Termination "Quiet_Desperation won by resignation"]

1. e4 {[%clk 0:03:01.9]} 1... c5 {[%clk 0:02:55.3]} 2. d4 {[%clk 0:03:01.9]}
2... cxd4 {[%clk 0:02:42.1]} 3. c3 {[%clk 0:03:03.1]} 3... d3 {[%clk 0:02:41.1]}
4. Bxd3 {[%clk 0:03:03.9]} 4... Nc6 {[%clk 0:02:41.3]} 5. Nf3 {[%clk 0:03:05.3]}
5... e6 {[%clk 0:02:39.6]} 6. O-O {[%clk 0:03:03.6]} 6... d6 {[%clk 0:02:40.7]}
7. Qe2 {[%clk 0:03:03.7]} 7... Be7 {[%clk 0:02:40.4]} 8. Rd1 {[%clk 0:03:04.9]}
8... Qc7 {[%clk 0:02:38.9]} 9. c4 {[%clk 0:03:00.2]} 9... Nf6 {[%clk 0:02:38.9]}
10. Nc3 {[%clk 0:03:01.6]} 10... a6 {[%clk 0:02:35]} 11. b3 {[%clk 0:02:49.1]}
11... Ne5 {[%clk 0:02:30.4]} 12. Nxe5 {[%clk 0:02:49.3]} 12... dxe5 {[%clk
0:02:32]} 13. Rf1 {[%clk 0:02:38.1]} 13... O-O {[%clk 0:02:13.6]} 14. f4 {[%clk
0:02:36.6]} 14... exf4 {[%clk 0:02:08.4]} 15. e5 {[%clk 0:02:30]} 15... Bc5+
{[%clk 0:02:03.5]} 16. Kh1 {[%clk 0:02:30.6]} 16... Nd7 {[%clk 0:01:58.3]} 17.
Bxf4 {[%clk 0:02:28.2]} 17... g6 {[%clk 0:01:48.9]} 18. Ne4 {[%clk 0:02:16.1]}
18... Be7 {[%clk 0:01:45.5]} 19. Nf6+ {[%clk 0:02:10.8]} 19... Bxf6 {[%clk
0:01:35.9]} 20. exf6 {[%clk 0:02:11.5]} 20... Qc5 {[%clk 0:01:35.3]} 21. Bh6
{[%clk 0:02:01.7]} 21... Re8 {[%clk 0:01:31]} 22. Rae1 {[%clk 0:01:53]} 22... e5
{[%clk 0:01:30.7]} 23. Be4 {[%clk 0:01:53.7]} 23... Qd6 {[%clk 0:01:20]} 24. Rd1
{[%clk 0:01:45]} 24... Qe6 {[%clk 0:01:13]} 25. Bd5 {[%clk 0:01:39.5]} 25... Qb6
{[%clk 0:00:45.1]} 26. Bg7 {[%clk 0:01:17.7]} 26... Nf8 {[%clk 0:00:37.7]} 27.
Qd2 {[%clk 0:01:14.5]} 27... Be6 {[%clk 0:00:15.6]} 28. Qh6 {[%clk 0:01:13.7]}
28... Qc5 {[%clk 0:00:14.4]} 29. Bh8 {[%clk 0:01:05.6]} 1-0